bitfinex/quotes_SOLUSD_20260224
["timestamp","ask_amount","ask_price","bid_price","bid_amount"]
[1771968591841,2.26667276,78.431,78.37,5.0133131]
[1771968592043,2.26667276,78.399,78.371,0.68291148]
[1771968592454,2.26667276,78.399,78.37,5.0133131]
[1771968592642,2.26667276,78.399,78.37,5.69622458]
[1771968592957,2.26667276,78.399,78.371,0.68671809]
[1771968593146,2.26667276,78.409,78.38,5.70003119]
[1771968593352,2.26667276,78.409,78.373,0.68671809]
[1771968593850,2.26667276,78.407,78.374,12.75933345]
[1771968594485,2.26667276,78.407,78.37,5.0133131]
[1771968594771,2.26667276,78.389,78.362,12.76116898]
[1771968595459,2.26667276,78.389,78.363,0.69787758]
[1771968596146,2.26667276,78.389,78.364,12.76096166]
[1771968596665,2.26667276,78.389,78.37,5.0133131]
[1771968597163,2.26667276,78.389,78.38,5.0133131]
[1771968597542,2.26667276,78.389,78.37,5.0133131]
[1771968598449,2.26667276,78.389,78.371,12.75982187]
[1771968598643,2.26667276,78.389,78.341,51.05860989]
[1771968598644,2.40221006,78.388,78.36,5.0133131]
[1771968598850,2.40221006,78.388,78.36,5.72197004]
[1771968600276,2.40221006,78.388,78.37,5.0133131]
[1771968600450,2.40221006,78.388,78.365,0.7156384]
[1771968600651,2.40221006,78.388,78.37,5.0133131]
[1771968601367,2.40221006,78.398,78.371,0.71906911]
[1771968601668,2.40221006,78.405,78.39,5.0133131]
[1771968601858,2.40221006,78.412,78.4,5.0133131]
[1771968602057,2.40221006,78.418,78.4,5.0133131]
[1771968602579,2.40221006,78.418,78.41,5.0133131]
[1771968602746,2.40221006,78.431,78.41,5.0133131]
[1771968604279,2.40221006,78.43,78.4,5.0133131]
[1771968604570,2.40221006,78.428,78.4,5.0133131]
[1771968604769,2.40221006,78.428,78.401,12.75493935]
[1771968604967,2.40221006,78.428,78.4,5.0133131]
[1771968605373,2.40221006,78.428,78.41,5.0133131]
[1771968605551,2.40221006,78.428,78.401,12.75493935]
[1771968606656,2.40221006,78.426,78.396,12.75564734]
[1771968606859,2.40221006,78.426,78.335,51.06242486]
[1771968606860,2.40221006,78.409,78.37,5.0133131]
[1771968607869,2.40221006,78.409,78.37,5.75215461]
[1771968608653,2.40221006,78.407,78.38,5.0133131]
[1771968608858,2.40221006,78.407,78.37,5.0133131]
[1771968609052,2.40221006,78.407,78.364,12.76096166]
[1771968609366,2.40221006,78.399,78.364,12.76096166]
[1771968610270,2.40221006,78.399,78.371,0.74822548]
[1771968611058,2.40221006,78.399,78.38,5.0133131]
[1771968613480,2.40221006,78.399,78.381,0.2]
[1771968614368,2.40221006,78.399,78.391,0.2]
[1771968615158,11.59938132,78.404,78.391,0.2]
[1771968616057,5.0133131,78.41,78.391,0.2]
[1771968616265,5.0133131,78.41,78.381,0.2]
[1771968617165,2.40221006,78.407,78.381,0.2]
[1771968617568,2.40221006,78.399,78.36,7.47703659]
[1771968617969,2.40221006,78.399,78.371,12.95979093]
[1771968618196,2.40221006,78.399,78.372,2.46372349]
[1771968618580,2.40221006,78.399,78.371,0.2]
[1771968619376,2.40221006,78.399,78.36,5.0133131]
[1771968619377,2.40221006,78.389,78.361,2.46372349]
[1771968620267,102.0,78.418,78.38,5.0133131]
[1771968620268,2.40221006,78.399,78.38,5.0133131]
[1771968620568,2.40221006,78.397,78.371,2.46372349]
[1771968620772,2.40221006,78.397,78.361,2.46372349]
[1771968621364,2.40221006,78.389,78.362,12.76128735]
[1771968622078,2.40221006,78.389,78.363,2.46372349]
[1771968622381,2.40221006,78.389,78.35,2.46372349]
[1771968622583,2.40221006,78.389,78.361,2.46372349]
[1771968625281,2.40221006,78.389,78.362,12.76128735]
[1771968625282,2.30054461,78.388,78.362,12.76128735]
[1771968625780,2.30054461,78.388,78.357,2.51487259]
[1771968625967,2.30054461,78.388,78.36,5.0133131]
[1771968626580,2.30054461,78.388,78.357,2.51487259]
[1771968627584,2.30054461,78.386,78.358,12.76193879]
[1771968629589,2.30054461,78.386,78.35,5.0133131]
[1771968629590,2.30054461,78.384,78.351,12.76307896]
[1771968629785,12.75754289,78.385,78.351,12.76307896]
[1771968629786,2.30054461,78.379,78.351,12.76307896]
[1771968631075,2.30054461,78.369,78.335,2.51487259]
[1771968631274,2.30054461,78.359,78.322,2.51487259]
[1771968631476,12.76356767,78.348,78.315,12.76894592]
[1771968631680,2.30054461,78.339,78.315,12.76894592]
[1771968632187,2.30054461,78.359,78.331,2.51487259]
[1771968632388,2.30054461,78.367,78.341,2.51487259]
[1771968632578,15.06101776,78.367,78.341,2.51487259]
[1771968632780,5.0133131,78.36,78.33,5.0133131]
[1771968632978,2.30054461,78.359,78.331,2.51487259]
[1771968633981,2.30054461,78.357,78.332,12.76617474]
[1771968634591,2.30054461,78.357,78.327,12.76693124]
[1771968635481,2.30054461,78.357,78.327,15.28180383]
[1771968635980,5.0133131,78.36,78.32,5.0133131]
[1771968635981,2.30054461,78.36,78.321,2.51487259]
[1771968636279,2.30054461,78.368,78.331,2.51487259]
[1771968638900,2.30054461,78.366,78.332,15.28104733]
[1771968640901,2.30054461,78.366,78.333,2.51487259]
[1771968641095,2.30054461,78.359,78.334,12.7658488]
[1771968642003,2.30054461,78.359,78.335,2.51487259]
[1771968642496,2.30054461,78.365,78.341,2.51487259]
[1771968644999,2.30054461,78.363,78.336,31.91380718]
[1771968645206,2.30054461,78.363,78.335,2.51487259]
[1771968653309,2.30054461,78.363,78.337,2.51487259]
[1771968653714,2.30054461,78.369,78.341,2.51487259]
[1771968659004,5.01051458,78.38,78.342,44.67590818]
[1771968659209,2.54591866,78.387,78.361,2.34742763]
[1771968659406,2.54591866,78.401,78.361,2.34742763]
[1771968659613,2.54591866,78.399,78.361,2.34742763]
[1771968660620,2.54591866,78.399,78.371,2.34742763]
[1771968661117,12.75250463,78.416,78.381,2.34742763]
[1771968661298,12.75250463,78.416,78.372,12.75965906]
[1771968661299,12.75250463,78.416,78.391,2.34742763]
[1771968661499,12.75250463,78.416,78.36,7.35794221]
[1771968661500,2.54591866,78.399,78.36,7.35794221]
[1771968661713,2.54591866,78.399,78.361,2.34742763]
[1771968661908,44.63375335,78.416,78.361,2.34742763]
[1771968661909,2.54591866,78.389,78.361,2.34742763]
[1771968662701,2.54591866,78.399,78.361,2.34742763]
[1771968666411,2.54591866,78.397,78.363,2.34742763]
[1771968669131,2.54591866,78.395,78.365,2.34742763]
[1771968672108,2.54591866,78.393,78.367,2.34742763]
[1771968679726,2.54591866,78.391,78.367,2.34742763]
[1771968679928,2.54591866,78.391,78.368,15.10773796]
[1771968680130,2.54591866,78.391,78.369,2.34742763]
[1771968681532,2.54591866,78.391,78.371,2.34742763]
[1771968685123,5.01051458,78.38,78.342,2.62228454]
[1771968685329,2.42045209,78.379,78.342,2.62228454]
[1771968685754,2.42045209,78.379,78.351,2.62228454]
[1771968689526,2.42045209,78.377,78.351,2.62228454]
[1771968690438,2.42045209,78.377,78.346,2.62228454]
[1771968690745,2.42045209,78.377,78.348,2.62228454]
[1771968691844,2.42045209,78.375,78.351,2.62228454]
[1771968695553,2.42045209,78.373,78.351,2.62228454]
[1771968700963,2.42045209,78.371,78.351,2.62228454]
[1771968705759,2.42045209,78.369,78.351,2.62228454]
[1771968706145,2.42045209,78.369,78.352,12.76291607]
[1771968706456,2.42045209,78.369,78.353,2.62228454]
[1771968715970,2.55315263,78.367,78.351,2.53807837]
[1771968719874,2.55315263,78.367,78.353,2.53807837]
[1771968726772,102.0,78.396,78.355,2.53807837]
[1771968726974,63.76325553,78.416,78.361,2.53807837]
[1771968726975,12.75363797,78.409,78.361,2.53807837]
[1771968727274,12.75363797,78.409,78.347,31.90915662]
[1771968727275,3.69383402,78.403,78.371,2.53807837]
[1771968727576,12.75363797,78.409,78.371,2.53807837]
[1771968727871,12.75363797,78.409,78.381,2.53807837]
[1771968728853,2.55315263,78.419,78.391,2.53807837]
[1771968729682,2.55315263,78.429,78.401,2.53807837]
[1771968729974,2.55315263,78.428,78.401,2.53807837]
[1771968730370,2.55315263,78.428,78.395,2.53807837]
[1771968731458,5.00890524,78.41,78.367,2.53807837]
[1771968731656,5.00890524,78.41,78.366,31.90158997]
[1771968731657,2.55315263,78.409,78.37,7.54698361]
[1771968731867,2.55315263,78.409,78.371,2.53807837]
[1771968732059,2.55315263,78.409,78.38,5.00890524]
[1771968732272,2.55315263,78.409,78.381,2.53807837]
[1771968732782,12.75071085,78.427,78.391,2.53807837]
[1771968733484,12.75071085,78.427,78.361,76.56870126]
[1771968733485,3.69383402,78.433,78.4,20.3020766]
[1771968734064,3.69383402,78.433,78.401,2.53807837]
[1771968734264,12.74908525,78.437,78.401,2.53807837]
[1771968734870,2.55315263,78.436,78.401,2.53807837]
[1771968736786,2.55315263,78.434,78.403,2.53807837]
[1771968736990,2.55315263,78.434,78.41,5.00890524]
[1771968737285,2.55315263,78.429,78.391,2.53807837]
[1771968737472,2.55315263,78.429,78.394,2.53807837]
[1771968738189,2.55315263,78.429,78.4,5.00890524]
[1771968738484,2.55315263,78.429,78.394,2.53807837]
[1771968739589,2.55315263,78.427,78.396,2.53807837]
[1771968741091,2.55315263,78.419,78.391,2.53807837]
[1771968741469,2.55315263,78.419,78.38,7.54698361]
[1771968741687,2.55315263,78.417,78.382,2.53807837]
[1771968743882,2.55315263,78.417,78.349,54.7473868]
[1771968743883,12.74924779,78.436,78.4,5.00890524]
[1771968744083,2.55315263,78.429,78.39,5.00890524]
[1771968744286,2.55315263,78.429,78.39,7.54698361]
[1771968744676,2.55315263,78.429,78.39,7.62189812]
[1771968744872,2.55315263,78.429,78.391,2.61299288]
[1771968746292,2.5375151,78.419,78.384,2.47714718]
[1771968747586,2.5375151,78.417,78.385,2.47714718]
[1771968751188,2.5375151,78.415,78.387,2.47714718]
[1771968752207,2.5375151,78.446,78.411,2.47714718]
[1771968752588,2.5375151,78.446,78.421,2.47714718]
[1771968752783,5.00890524,78.43,78.395,2.47714718]
[1771968752988,2.5375151,78.429,78.391,2.47714718]
[1771968753209,2.5375151,78.427,78.393,2.47714718]
[1771968754189,2.5375151,78.427,78.401,2.47714718]
[1771968754897,2.5375151,78.449,78.411,2.47714718]
[1771968755207,2.5375151,78.448,78.421,2.47714718]
[1771968755910,2.5375151,78.446,78.421,2.47714718]
[1771968756407,2.5375151,78.446,78.42,17.76064734]
[1771968756408,2.5375151,78.446,78.423,2.47714718]
[1771968757002,0.1,78.45,78.422,12.7515238]
[1771968757003,0.1,78.45,78.431,2.47714718]
[1771968757302,2.5375151,78.439,78.41,5.00890524]
[1771968758202,2.5375151,78.439,78.411,12.75331267]
[1771968759099,2.5375151,78.439,78.412,2.47714718]
[1771968759789,0.1,78.45,78.431,2.47714718]
[1771968760105,2.5375151,78.463,78.441,15.22552596]
[1771968761407,2.5375151,78.463,78.441,2.47714718]
[1771968761606,2.5375151,78.463,78.436,12.74917381]
[1771968763209,2.5375151,78.461,78.432,2.47714718]
[1771968763790,2.5375151,78.459,78.431,12.75006056]
[1771968764715,2.5375151,78.449,78.412,2.47714718]
[1771968765210,2.5375151,78.447,78.414,2.47714718]
[1771968767413,2.5375151,78.445,78.416,2.47714718]
[1771968767713,2.5375151,78.445,78.421,2.47714718]
[1771968768110,2.5375151,78.455,78.431,2.47714718]
[1771968770191,2.5375151,78.454,78.431,15.22714516]
[1771968770395,2.5375151,78.454,78.422,31.87845714]
[1771968770596,2.5375151,78.449,78.423,12.7513612]
[1771968773413,2.5375151,78.449,78.425,12.75103602]
[1771968773719,2.5375151,78.449,78.426,2.47714718]
[1771968778725,2.5375151,78.449,78.427,12.75071085]
[1771968779029,2.39714513,78.447,78.421,2.39716007]
[1771968779324,2.39714513,78.447,78.422,2.39716007]
[1771968780226,2.39714513,78.439,78.411,12.75331267]
[1771968780424,2.39714513,78.439,78.406,12.75398678]
[1771968780612,2.39714513,78.439,78.407,2.39716007]
[1771968783430,2.39714513,78.437,78.407,15.15108062]
[1771968783816,2.39714513,78.437,78.407,2.39716007]
[1771968784526,2.39714513,78.437,78.408,12.75380063]
[1771968785624,2.39714513,78.437,78.408,2.39716007]
[1771968785829,2.39714513,78.435,78.408,2.39716007]
[1771968789420,2.39714513,78.433,78.41,2.39716007]
[1771968801544,2.39714513,78.431,78.41,2.39716007]
[1771968805642,2.48842799,78.429,78.41,2.39716007]
[1771968807939,2.48842799,78.427,78.406,2.46042939]
[1771968808861,5.00015522,78.42,78.393,15.21664964]
[1771968809039,2.48842799,78.409,78.371,2.46042939]
[1771968809229,2.48842799,78.399,78.372,2.46042939]
[1771968809552,5.00015522,78.38,78.308,51.07973764]
[1771968809850,2.48842799,78.369,78.342,2.46042939]
[1771968810042,2.48842799,78.369,78.334,31.91429458]
[1771968810043,2.48842799,78.367,78.344,2.46042939]
[1771968810740,2.48842799,78.359,78.33,0.2]
[1771968810952,2.48842799,78.349,78.33,0.2]
[1771968811451,2.48842799,78.349,78.268,51.10601708]
[1771968811452,2.48842799,78.339,78.301,12.77122897]
[1771968811655,2.48842799,78.329,78.301,12.77122897]
[1771968811863,2.48842799,78.339,78.301,12.77122897]
[1771968812356,2.48842799,78.319,78.281,12.77449189]
[1771968812538,2.48842799,78.309,78.281,12.77449189]
[1771968812858,51.03817243,78.373,78.301,2.46042939]
[1771968812859,2.48842799,78.334,78.301,2.46042939]
[1771968813156,2.48842799,78.333,78.301,2.46042939]
[1771968813643,2.48842799,78.339,78.311,2.46042939]
[1771968814641,2.48842799,78.339,78.313,2.46042939]
[1771968817148,2.48842799,78.337,78.314,12.76910897]
[1771968817355,2.48842799,78.337,78.281,51.09796757]
[1771968817356,2.48842799,78.329,78.301,2.46042939]
[1771968817754,2.48842799,78.329,78.304,12.77058589]
[1771968817952,2.48842799,78.329,78.305,2.46042939]
[1771968820168,2.48842799,78.329,78.307,2.46042939]
[1771968821978,2.48842799,78.337,78.311,2.46042939]
[1771968822273,2.48842799,78.341,78.313,2.46042939]
[1771968823655,2.48842799,78.341,78.281,51.09753514]
[1771968823656,2.48842799,78.319,78.29,2.46042939]
[1771968823969,2.48842799,78.319,78.282,2.46042939]
[1771968824157,2.48842799,78.317,78.284,2.46042939]
[1771968825358,2.48842799,78.309,78.285,12.77383917]
[1771968825770,2.48842799,78.309,78.285,15.23426856]
[1771968826171,2.48842799,78.309,78.286,2.46042939]
[1771968827382,2.48842799,78.309,78.28,0.1]
[1771968827682,2.48842799,78.299,78.28,0.1]
[1771968827972,2.48842799,78.299,78.27,0.2]
[1771968828572,2.48842799,78.299,78.272,2.46042939]
[1771968828759,2.48842799,78.303,78.279,2.46042939]
[1771968829264,2.48842799,78.303,78.272,2.46042939]
[1771968830278,2.48842799,78.303,78.27,5.21849814]
[1771968830279,2.48842799,78.316,78.281,2.46042939]
[1771968832977,31.92146043,78.318,78.282,12.7743287]
[1771968832978,2.48842799,78.309,78.282,12.7743287]
[1771968833166,2.48842799,78.309,78.282,15.23475809]
[1771968833975,2.48842799,78.309,78.283,2.46042939]
[1771968834379,2.48842799,78.309,78.283,2.28879923]
[1771968835368,2.48842799,78.309,78.284,12.77400235]
[1771968836484,2.56226746,78.308,78.284,15.2087136]
[1771968836682,2.56226746,78.308,78.286,12.773676]
[1771968836886,2.56226746,78.313,78.291,2.43471125]
[1771968837066,2.56226746,78.328,78.291,2.43471125]
[1771968838391,2.56226746,78.326,78.293,2.43017419]
[1771968839486,2.56226746,78.339,78.301,2.42794468]
[1771968841082,2.56226746,78.337,78.303,2.42608964]
[1771968843171,2.56226746,78.337,78.304,44.69758888]
[1771968843371,2.56226746,78.336,78.311,2.42065141]
[1771968845282,2.56226746,78.342,78.313,2.41712923]
[1771968845885,2.56226746,78.342,78.32,5.01849814]
[1771968846091,2.56226746,78.329,78.312,12.76943508]
[1771968846301,2.56226746,78.329,78.304,2.41539843]
[1771968850714,2.56226746,78.329,78.305,12.77057659]
[1771968855500,2.56226746,78.327,78.301,12.77122897]
[1771968855716,2.56226746,78.327,78.302,2.40068891]
[1771968856914,2.56226746,78.327,78.304,2.39914694]
[1771968859915,2.56226746,78.325,78.298,12.77164394]
[1771968860509,2.56226746,78.325,78.298,15.16479808]
[1771968862518,2.56226746,78.325,78.298,12.77164394]
[1771968862725,12.76747867,78.324,78.299,2.39026]
[1771968862911,2.56226746,78.323,78.299,2.39026]
[1771968865428,2.52180811,78.321,78.299,2.39026]
[1771968870133,2.52180811,78.319,78.294,2.36621812]
[1771968871329,2.52180811,78.329,78.301,2.36621812]
[1771968872411,2.52180811,78.335,78.303,2.36621812]
[1771968872736,102.0,78.345,78.311,2.36621812]
[1771968872737,2.52180811,78.34,78.311,2.36621812]
[1771968875234,2.52180811,78.339,78.312,12.76943508]
[1771968875536,2.52180811,78.339,78.313,2.36621812]
[1771968877535,2.52180811,78.339,78.282,102.19410747]
[1771968877536,2.52180811,78.337,78.301,2.36621812]
[1771968881424,2.52180811,78.335,78.303,2.36358734]
[1771968886457,2.52180811,78.335,78.279,63.87372043]
[1771968886458,2.52180811,78.309,78.272,2.35813491]
[1771968886629,2.52180811,78.309,78.281,2.35813491]
[1771968887449,2.52180811,78.309,78.29,5.01849814]
[1771968887750,2.52180811,78.314,78.291,2.35708171]
[1771968888650,2.52180811,78.314,78.29,5.01849814]
[1771968888651,2.52180811,78.32,78.293,2.35604061]
[1771968892549,2.52180811,78.32,78.295,2.35199442]
[1771968892753,2.52180811,78.32,78.301,2.35199442]
[1771968894844,2.52180811,78.334,78.303,2.35004037]
[1771968896857,2.52180811,78.334,78.305,2.34719266]
[1771968897035,2.52180811,78.334,78.311,2.34626514]
[1771968900242,2.3624714,78.329,78.295,31.93037964]
[1771968900448,2.3624714,78.319,78.29,5.01577902]
[1771968902259,2.3624714,78.319,78.292,12.77269708]
[1771968902663,2.3624714,78.319,78.293,2.08617279]
[1771968903339,2.3624714,78.319,78.295,2.08530739]
[1771968904756,2.3624714,78.326,78.301,2.08445193]
[1771968905645,2.3624714,78.342,78.321,2.08360629]
[1771968906239,2.3624714,78.348,78.322,2.08275606]
[1771968906545,2.3624714,78.348,78.32,5.01577902]
[1771968907455,2.3624714,78.348,78.321,44.68788702]
[1771968907758,2.3624714,78.348,78.322,2.0819156]
[1771968909553,2.3624714,78.353,78.331,2.08026352]
[1771968909859,2.3624714,78.368,78.341,2.08026352]
[1771968911966,2.3624714,78.366,78.342,12.76454519]
[1771968913149,2.3624714,78.366,78.341,2.08026352]
[1771968914669,2.3624714,78.364,78.342,12.76454519]
[1771968915750,2.3624714,78.364,78.343,2.07553025]
[1771968916060,2.3624714,78.364,78.342,12.76454519]
[1771968916061,2.3624714,78.375,78.351,2.07553025]
[1771968916245,2.3624714,78.375,78.342,12.76454519]
[1771968916446,2.3624714,78.369,78.342,12.76454519]
[1771968917960,2.3624714,78.369,78.342,14.8385692]
[1771968922169,2.3624714,78.349,78.293,63.86266971]
[1771968922374,2.3624714,78.349,78.32,7.08618623]
[1771968923553,2.3624714,78.348,78.32,7.08618623]
[1771968924275,5.01577902,78.33,78.3,5.01577902]
[1771968924486,2.3624714,78.329,78.301,2.06901799]
[1771968924665,2.3624714,78.329,78.311,2.06833532]
[1771968926670,2.3624714,78.329,78.312,12.76943508]
[1771968928798,3.69383402,78.357,78.312,12.76943508]
[1771968928799,5.36086188,78.386,78.321,2.0650378]
[1771968929071,5.36086188,78.386,78.32,10.03155804]
[1771968929072,2.38406285,78.359,78.325,2.0650378]
[1771968929271,2.38406285,78.339,78.313,2.06440085]
[1771968929477,2.38406285,78.339,78.312,12.76943508]
[1771968932166,2.38406285,78.329,78.302,2.06253355]
[1771968932369,2.38406285,78.349,78.32,7.07831257]
[1771968932556,2.38406285,78.349,78.321,2.06253355]
[1771968932753,2.38406285,78.349,78.322,12.7678047]
[1771968935063,2.38406285,78.349,78.317,2.06072986]
[1771968935758,2.38406285,78.349,78.321,2.06072986]
[1771968937070,2.38406285,78.349,78.323,2.05956166]
[1771968938170,2.38406285,78.349,78.325,2.05898761]
[1771968939582,2.38406285,78.349,78.326,12.76715266]
[1771968939772,2.38406285,78.348,78.326,12.76715266]
[1771968941664,2.38406285,78.348,78.323,12.76764168]
[1771968942582,2.38406285,78.348,78.324,2.05675657]
[1771968943879,2.38406285,78.348,78.325,12.76731567]
[1771968946165,2.38406285,78.348,78.325,2.05462629]
[1771968947688,2.38406285,78.348,78.326,12.76715266]
[1771968948187,12.75933345,78.374,78.327,2.0535975]
[1771968948381,2.38406285,78.369,78.331,2.0535975]
[1771968948588,2.38406285,78.369,78.341,2.0535975]
[1771968949387,2.38406285,78.379,78.341,2.0535975]
[1771968951280,2.38406285,78.379,78.343,2.0520982]
[1771968952293,2.38406285,78.379,78.351,2.05160987]
[1771968952492,2.38406285,78.384,78.351,2.05160987]
[1771968953296,2.38406285,78.379,78.353,2.05112715]
[1771968955494,2.38406285,78.379,78.355,2.049712]
[1771968956705,2.38406285,78.379,78.354,12.76259029]
[1771968959196,2.38406285,78.379,78.354,2.04789984]
[1771968959503,2.31392543,78.389,78.354,2.04789984]
[1771968961284,2.31392543,78.389,78.361,2.04702468]
[1771968961684,2.31392543,78.399,78.361,2.04702468]
[1771968962899,2.31392543,78.399,78.371,2.04659462]
[1771968964087,5.20882084,78.4,78.381,2.04574928]
[1771968964088,0.2,78.4,78.381,2.04574928]
[1771968964283,2.51392543,78.41,78.383,2.04574928]
[1771968964482,0.2,78.41,78.383,2.04574928]
[1771968964790,0.2,78.41,78.38,5.00882084]
[1771968964791,2.51392543,78.41,78.391,2.04574928]
[1771968965093,2.51392543,78.41,78.392,12.75640371]
[1771968965992,0.2,78.41,78.393,2.04533387]
[1771968967399,0.2,78.41,78.394,14.80059559]
[1771968967602,0.2,78.41,78.395,2.04451732]
[1771968968801,0.2,78.42,78.396,12.75575284]
[1771968969101,2.51392543,78.42,78.397,2.04411606]
[1771968971111,2.51392543,78.42,78.399,2.04332733]
[1771968971788,0.2,78.42,78.399,2.04332733]
[1771968972005,2.51392543,78.42,78.399,2.04332733]
[1771968974006,2.51392543,78.42,78.4,12.75510204]
[1771968975586,2.31392543,78.409,78.391,12.75656644]
[1771968976406,2.31392543,78.409,78.387,31.89284424]
[1771968976909,2.31392543,78.409,78.38,12.75835672]
[1771968980909,2.31392543,78.407,78.38,12.75835672]
[1771968981213,2.31392543,78.407,78.381,2.03964577]
[1771968982917,2.31392543,78.407,78.382,12.75803118]
[1771968985416,2.31392543,78.407,78.382,14.79534156]
[1771968988002,2.31392543,78.407,78.384,12.75770565]
[1771968988204,2.31392543,78.407,78.384,14.79407153]
[1771968988509,2.31392543,78.407,78.384,12.75770565]
[1771968989723,2.45798109,78.406,78.384,12.75770565]
[1771968990596,2.45798109,78.406,78.381,12.75819395]
[1771968990803,2.45798109,78.406,78.382,2.03575416]
[1771968992824,2.45798109,78.406,78.384,2.03515641]
[1771968997210,2.45798109,78.406,78.386,2.03372108]
[1771969000930,2.45798109,78.406,78.387,12.75721739]
[1771969002621,2.45798109,78.399,78.373,2.03236631]
[1771969002836,2.45798109,78.389,78.369,2.03236631]
[1771969003730,2.45798109,78.389,78.371,12.75982187]
[1771969003934,2.45798109,78.389,78.372,2.03210462]
[1771969006442,2.45798109,78.393,78.374,2.03133745]
[1771969007533,2.45798109,78.393,78.375,14.79025823]
[1771969012543,2.45798109,78.393,78.371,12.75966092]
[1771969013228,2.45798109,78.393,78.371,14.7893084]
[1771969017258,2.45798109,78.393,78.372,2.02852135]
[1771969017936,5.00629284,78.4,78.372,2.02852135]
[1771969018239,2.45762623,78.407,78.372,2.02852135]
[1771969020556,2.45762623,78.407,78.381,2.02787623]
[1771969022361,2.45762623,78.407,78.383,2.02745842]
[1771969022558,2.45762623,78.415,78.383,2.02745842]
[1771969023448,2.45762623,78.409,78.382,14.78528428]
[1771969024654,2.45762623,78.407,78.375,12.7590518]
[1771969024854,2.45762623,78.389,78.375,12.7590518]
[1771969028062,2.45762623,78.389,78.362,2.02645514]
[1771969029254,2.45762623,78.389,78.364,2.02606978]
[1771969031561,2.45762623,78.389,78.366,2.02569322]
[1771969035275,2.45762623,78.389,78.368,2.02496571]
[1771969037480,2.45762623,78.389,78.369,12.7601475]
[1771969037659,2.45762623,78.379,78.361,12.76145021]
[1771969039871,2.45762623,78.369,78.354,12.76256222]
[1771969041078,2.45762623,78.369,78.348,12.76356767]
[1771969046378,2.45762623,78.369,78.348,2.02282061]
[1771969048677,2.45762623,78.369,78.345,31.9101065]
[1771969049580,2.51879501,78.367,78.341,12.76470813]
[1771969051076,2.51879501,78.367,78.342,2.02207763]
[1771969052987,2.51879501,78.383,78.351,2.02193412]
[1771969053191,2.51879501,78.383,78.363,2.02179226]
[1771969053664,2.51879501,78.381,78.357,2.02179226]
[1771969053866,2.51879501,78.381,78.358,12.76193879]
[1771969056278,2.51879501,78.379,78.358,12.76193879]
[1771969058004,2.51879501,78.369,78.347,12.76363934]
[1771969058290,2.51879501,78.369,78.345,2.021107]
[1771969059181,2.51879501,78.367,78.345,2.021107]
[1771969059487,2.51879501,78.367,78.34,2.02097464]
[1771969059994,2.51879501,78.367,78.341,2.02097464]
[1771969060382,2.51879501,78.367,78.342,12.76454519]
[1771969060584,2.51879501,78.367,78.343,2.02084379]
[1771969065793,2.51879501,78.379,78.351,2.02021177]
[1771969067888,2.51879501,78.39,78.361,2.01996901]
[1771969071498,2.51879501,78.39,78.363,2.01949999]
[1771969072998,2.51879501,78.39,78.371,2.01938608]
[1771969073379,2.51879501,78.39,78.372,14.77893254]
[1771969074393,5.00658114,78.41,78.372,14.77893254]
[1771969074394,12.75498639,78.401,78.373,2.01916218]
[1771969075597,5.00658114,78.41,78.381,2.35070778]
[1771969075598,12.75363797,78.409,78.381,2.35070778]
[1771969076487,2.30025105,78.408,78.381,2.35070778]
[1771969076882,0.2,78.42,78.401,2.35070778]
[1771969077777,0.2,78.42,78.4,5.00658114]
[1771969077778,0.2,78.42,78.403,2.35070778]
[1771969080805,0.2,78.42,78.404,15.10515908]
[1771969081688,0.2,78.42,78.405,2.35070778]
[1771969082201,0.1,78.48,78.406,2.35070778]
[1771969082404,1e-08,78.459,78.44,5.00658114]
[1771969082701,0.1,78.48,78.417,3.69383402]
[1771969082889,5.10658114,78.47,78.431,2.35070778]
[1771969083083,5.10658114,78.47,78.414,44.63488662]
[1771969083084,1e-08,78.48,78.45,5.00658114]
[1771969083313,0.1,78.49,78.471,2.35070778]
[1771969084890,0.1,78.49,78.472,12.74339891]
[1771969085487,0.1,78.49,78.473,2.35070778]
[1771969086097,5.00658114,78.51,78.48,7.35728892]
[1771969086300,5.00658114,78.51,78.473,2.35070778]
[1771969086899,5.00658114,78.51,78.474,12.74307413]
[1771969087114,5.00658114,78.51,78.475,2.35070778]
[1771969088204,1.04105308,78.509,78.475,2.35070778]
[1771969088590,1.04105308,78.509,78.477,2.35070778]
[1771969089103,1.03258858,78.519,78.491,2.35070778]
[1771969090302,1.03258858,78.519,78.486,2.35070778]
[1771969090813,1.0242213,78.517,78.487,12.74096347]
[1771969091397,1.0242213,78.517,78.488,2.35070778]
[1771969092824,1.0242213,78.517,78.498,2.07383137]
[1771969093717,0.99563908,78.515,78.498,2.07383137]
[1771969094594,0.99563908,78.515,78.488,15.09149255]
[1771969095608,0.99563908,78.515,78.489,2.35070778]
[1771969098417,0.94686795,78.52,78.491,2.35070778]
[1771969098723,0.94686795,78.525,78.491,2.35070778]
[1771969099018,0.94686795,78.525,78.501,2.35070778]
[1771969101013,0.94686795,78.525,78.502,15.08923673]
[1771969103022,0.94686795,78.525,78.503,2.35070778]
[1771969103225,0.1,78.53,78.511,2.35070778]
[1771969103823,0.1,78.54,78.531,2.35070778]
[1771969104321,0.89194217,78.554,78.531,2.35070778]